[Event "Djerba Festival Open-B 2025"]
[Site "Djerba"]
[Date "2025.02.18"]
[Round "4.2"]
[White "Rafik yassine"]
[Black "Dejardin, Gregoire"]
[Result "*"]
[Annotator "NA"]
[ECO "E08"]
[WhiteElo "1909"]
[BlackElo "1932"]
[PlyCount "79"]
[EventDate "2025.02.15"]
[EventType "swiss"]
[EventCountry "TUN"]
[SourceTitle "playchess.com"]
[Source "ChessBase"]
[SourceQuality "1"]
[TimeControl "5400+30"]

1. c4 {[%emt 0:00:11]} c6 {[%emt 0:00:07]} 2. g3 {[%emt 0:00:09]} Nf6 {[%emt 0:00:18]} 3. Bg2 {[%emt 0:00:20]} d5 {[%emt 0:00:12]} 4. Nf3 {[%emt 0:01:15]} e6 {[%emt 0:01:28]} 5. b3 {[%emt 0:00:20]} Be7 {[%emt 0:00:28]} 6. Bb2 {[%emt 0:00:15]} O-O {[%emt 0:00:12]} 7. O-O {[%emt 0:00:12]} Nbd7 {[%emt 0:00:10]} 8. Qc2 {[%emt 0:00:34]} b6 {[%emt 0:01:08]} 9. d4 {[%emt 0:00:29]} Bb7 {[%emt 0:00:20]} 10. Nc3 {[%emt 0:01:04]} dxc4 {[%emt 0:03:23]} 11. bxc4 {[%emt 0:00:16]} c5 {[%emt 0:00:15]} 12. d5 {[%emt 0:06:41]} exd5 {[%emt 0:00:22]} 13. cxd5 {[%emt 0:00:07]} Ne8 {[%emt 0:09:15]} 14. e4 {[%emt 0:01:28]} f6 {[%emt 0:01:40]} 15. Rfd1 {[%emt 1:24:39]} Nd6 {[%emt 0:04:05]} 16. Ne2 {[%emt 0:02:57]} Re8 {[%emt 0:00:45]} 17. Nf4 {[%emt 0:00:38]} Nf8 {[%emt 0:00:16]} 18. e5 {[%emt 0:02:16]} fxe5 {[%emt 0:01:03]} 19. Nxe5 {[%emt 0:00:36]} Bf6 {[%emt 1:14:33]} 20. Nc6 {[%emt 0:02:02]} Qc7 {[%emt 0:04:21]} 21. Bxf6 {[%emt 0:01:35]} gxf6 {[%emt 0:00:05]} 22. Nh5 {[%emt 0:02:30]} Qf7 {[%emt 0:02:03]} 23. Bf3 {[%emt 0:01:38]} Nd7 {[%emt 1:06:12]} 24. Nf4 {[%emt 1:13:41]} Ne5 {[%emt 0:01:16]} 25. Bh5 {[%emt 0:00:47]} Qd7 {[%emt 0:05:56]} 26. Bxe8 {[%emt 0:01:29]} Rxe8 {[%emt 0:52:54]} 27. Nxe5 {[%emt 0:00:20]} fxe5 {[%emt 0:00:59]} 28. Ne6 {[%emt 0:00:41]} Bxd5 {[%emt 0:09:16]} 29. Rxd5 {[%emt 0:01:46]} Qxe6 {[%emt 0:00:09]} 30. Rad1 {[%emt 1:10:19]} Nb5 {[%emt 0:01:25]} 31. Rd7 {[%emt 0:01:07]} e4 {[%emt 0:03:34]} 32. R1d5 {[%emt 0:07:06]} Nd4 {[%emt 0:07:27]} 33. Qd1 {[%emt 0:02:22]} Qh3 {[%emt 0:02:11]} 34. Rg5+ {[%emt 0:03:46]} Kf8 {[%emt 0:02:10]} 35. Rxd4 {[%emt 0:03:09]} cxd4 {[%emt 0:00:16]} 36. Qxd4 {[%emt 0:55:28]} Qh6 {[%emt 0:16:26]} 37. Qh8+ {[%emt 0:01:13]} Kf7 {[%emt 0:13:51]} 38. Rf5+ {[%emt 0:00:10]} Qf6 {[%emt 0:13:58]} 39. Rg5 {[%emt 0:00:30]} Qd6 {[%emt 0:00:30]} 40. Qg8+ {[%emt 0:00:30]} *

[Event "Djerba Festival Open-B 2025"]
[Site "Djerba"]
[Date "2025.02.18"]
[Round "4.3"]
[White "Kole, Arda"]
[Black "Zouaghi, Ahmed"]
[Result "1/2-1/2"]
[Annotator "NA"]
[ECO "B36"]
[WhiteElo "1848"]
[BlackElo "1919"]
[PlyCount "89"]
[EventDate "2025.02.15"]
[EventType "swiss"]
[EventCountry "TUN"]
[SourceTitle "playchess.com"]
[Source "ChessBase"]
[SourceQuality "1"]
[TimeControl "5400+30"]

1. e4 {[%emt 0:00:58]} c5 {[%emt 0:00:05]} 2. Nf3 {[%emt 0:00:20]} g6 {[%emt 0:00:14]} 3. d4 {[%emt 0:00:06]} cxd4 {[%emt 0:00:09]} 4. Nxd4 {[%emt 0:00:07]} Nc6 {[%emt 0:00:25]} 5. c4 {[%emt 0:00:43]} Nf6 {[%emt 0:00:48]} 6. Nc3 {[%emt 0:01:32]} Nxd4 {[%emt 0:00:19]} 7. Qxd4 {[%emt 0:00:08]} d6 {[%emt 0:00:08]} 8. Be3 {[%emt 0:03:10]} Bg7 {[%emt 0:00:58]} 9. Be2 {[%emt 0:00:32]} O-O {[%emt 0:00:46]} 10. Qd2 {[%emt 0:01:07]} a5 {[%emt 0:00:19]} 11. f3 {[%emt 0:00:54]} a4 {[%emt 0:00:50]} 12. O-O {[%emt 0:02:06]} Qa5 {[%emt 0:04:18]} 13. Bd4 {[%emt 0:03:17]} Be6 {[%emt 0:03:20]} 14. b3 {[%emt 0:13:11]} axb3 {[%emt 0:13:54]} 15. axb3 {[%emt 0:00:08]} Qb4 {[%emt 0:02:05]} 16. Qb2 {[%emt 0:12:29]} Rfc8 {[%emt 0:08:25]} 17. Na2 {[%emt 0:06:39]} Qa3 {[%emt 0:04:43]} 18. Qc2 {[%emt 0:07:03]} Nd7 {[%emt 0:10:00]} 19. Bxg7 {[%emt 0:01:02]} Qc5+ {[%emt 0:00:11]} 20. Kh1 {[%emt 0:00:20]} Kxg7 {[%emt 0:00:04]} 21. Nc3 {[%emt 0:02:41]} Kg8 {[%emt 0:13:14]} 22. Rad1 {[%emt 0:11:57]} Nf6 {[%emt 0:04:13]} 23. f4 {[%emt 0:05:39]} b5 {[%emt 0:07:45]} 24. f5 {[%emt 0:01:57]} Bd7 {[%emt 0:02:17]} 25. Qb1 {[%emt 0:06:51]} b4 {[%emt 0:03:20]} 26. Nd5 {[%emt 0:04:12]} Nxd5 {[%emt 0:00:35]} 27. Rxd5 {[%emt 0:00:14]} Qe3 {[%emt 0:00:59]} 28. Bf3 {[%emt 0:03:36]} Bc6 {[%emt 0:03:03]} 29. Rd3 {[%emt 0:06:21]} Qc5 {[%emt 0:01:26]} 30. Qb2 {[%emt 0:04:47]} Qe5 {[%emt 0:08:11]} 31. Qxe5 {[%emt 0:01:20]} dxe5 {[%emt 0:00:06]} 32. g4 {[%emt 0:00:21]} Ra3 {[%emt 0:01:40]} 33. Rfd1 {[%emt 0:00:22]} Kg7 {[%emt 0:00:32]} 34. Kg2 {[%emt 0:00:20]} Kf6 {[%emt 0:02:06]} 35. h4 {[%emt 0:00:53]} gxf5 {[%emt 0:01:04]} 36. gxf5 {[%emt 0:00:20]} Rg8+ {[%emt 0:01:35]} 37. Kh3 {[%emt 0:00:44]} Rga8 {[%emt 0:02:21]} 38. R1d2 {[%emt 0:00:31]} Ra1 {[%emt 0:01:15]} 39. Re3 {[%emt 0:00:28]} Rb1 {[%emt 0:01:03]} 40. Rdd3 {[%emt 0:00:31]} Ra3 {[%emt 0:00:47]} 41. Kg3 {[%emt 0:00:28]} Rb2 {[%emt 0:00:38]} 42. Kh3 {[%emt 0:00:19]} Rb1 {[%emt 0:00:32]} 43. Kg3 {[%emt 0:00:08]} Rg1+ {[%emt 0:00:26]} 44. Kh2 {[%emt 0:00:51]} Rb1 {[%emt 0:00:30]} 45. Kh3 {[%emt 0:00:09]} 1/2-1/2

[Event "Djerba Festival Open-B 2025"]
[Site "Djerba"]
[Date "2025.02.18"]
[Round "4.4"]
[White "Charfeddine, Akram"]
[Black "Zenaidi, Sadok"]
[Result "0-1"]
[Annotator "NA"]
[ECO "B13"]
[WhiteElo "1915"]
[BlackElo "1872"]
[PlyCount "148"]
[EventDate "2025.02.15"]
[EventType "swiss"]
[EventCountry "TUN"]
[SourceTitle "playchess.com"]
[Source "ChessBase"]
[SourceQuality "1"]
[TimeControl "5400+30"]

1. e4 {[%emt 0:03:13]} c6 {[%emt 0:00:04]} 2. d4 {[%emt 0:00:15]} d5 {[%emt 0:00:14]} 3. exd5 {[%emt 0:00:16]} cxd5 {[%emt 0:00:07]} 4. Bd3 {[%emt 0:00:16]} Nc6 {[%emt 0:00:17]} 5. c3 {[%emt 0:00:53]} Nf6 {[%emt 0:00:19]} 6. h3 {[%emt 0:02:56]} Qc7 {[%emt 0:02:33]} 7. Nf3 {[%emt 0:01:43]} g6 {[%emt 0:00:39]} 8. Qc2 {[%emt 0:08:10]} a6 {[%emt 0:03:34]} 9. O-O {[%emt 0:06:28]} Bg7 {[%emt 0:00:28]} 10. Re1 {[%emt 0:01:09]} O-O {[%emt 0:00:16]} 11. Ne5 {[%emt 0:08:00]} Re8 {[%emt 0:00:42]} 12. Bf4 {[%emt 0:02:06]} Nxe5 {[%emt 0:00:59]} 13. Bxe5 {[%emt 0:00:45]} Qc6 {[%emt 0:01:10]} 14. a4 {[%emt 0:07:24]} Nh5 {[%emt 0:01:16]} 15. Qd2 {[%emt 0:07:21]} Bxe5 {[%emt 0:02:00]} 16. dxe5 {[%emt 0:04:27]} Bd7 {[%emt 0:00:51]} 17. Qe3 {[%emt 0:14:21]} Ng7 {[%emt 0:01:02]} 18. Nd2 {[%emt 0:00:34]} Bf5 {[%emt 0:08:23]} 19. Nf3 {[%emt 0:02:56]} Bxd3 {[%emt 0:01:28]} 20. Qxd3 {[%emt 0:00:07]} Ne6 {[%emt 0:00:29]} 21. Nd4 {[%emt 0:00:40]} Nxd4 {[%emt 0:00:25]} 22. Qxd4 {[%emt 0:00:38]} e6 {[%emt 0:00:16]} 23. Qf4 {[%emt 0:02:19]} Qb6 {[%emt 0:01:26]} 24. b4 {[%emt 0:01:40]} Rac8 {[%emt 0:00:22]} 25. Re3 {[%emt 0:02:45]} Rc4 {[%emt 0:00:47]} 26. Qh6 {[%emt 0:01:16]} Rec8 {[%emt 0:00:58]} 27. Ra3 {[%emt 0:02:38]} a5 {[%emt 0:03:22]} 28. Rf3 {[%emt 0:01:54]} Qc7 {[%emt 0:04:15]} 29. Re3 {[%emt 0:06:39]} axb4 {[%emt 0:00:11]} 30. cxb4 {[%emt 0:00:27]} Rxb4 {[%emt 0:00:42]} 31. f4 {[%emt 0:03:26]} Qc1+ {[%emt 0:01:59]} 32. Kh2 {[%emt 0:00:47]} Rb1 {[%emt 0:00:57]} 33. Kg3 {[%emt 0:03:49]} Rb2 {[%emt 0:03:09]} 34. Qg5 {[%emt 0:02:15]} Qg1 {[%emt 0:01:01]} 35. Kh4 {[%emt 0:00:40]} Rxg2 {[%emt 0:01:07]} 36. Rg3 {[%emt 0:00:36]} Rxg3 {[%emt 0:00:11]} 37. Rxg3 {[%emt 0:00:05]} Qb6 {[%emt 0:00:11]} 38. Qf6 {[%emt 0:00:39]} Qd8 {[%emt 0:00:14]} 39. Rb3 {[%emt 0:01:37]} Qxf6+ {[%emt 0:05:18]} 40. exf6 {[%emt 0:00:01]} h6 {[%emt 0:05:16]} 41. Rxb7 {[%emt 0:00:15]} Rc4 {[%emt 0:00:06]} 42. Rb8+ {[%emt 0:00:53]} Kh7 {[%emt 0:00:07]} 43. Kg3 {[%emt 0:00:45]} g5 {[%emt 0:00:08]} 44. fxg5 {[%emt 0:00:41]} hxg5 {[%emt 0:00:06]} 45. a5 {[%emt 0:00:28]} Kg6 {[%emt 0:00:31]} 46. a6 {[%emt 0:00:30]} Ra4 {[%emt 0:00:06]} 47. Ra8 {[%emt 0:00:09]} Kxf6 {[%emt 0:00:26]} 48. a7 {[%emt 0:00:27]} d4 {[%emt 0:00:27]} 49. Rd8 {[%emt 0:00:32]} Rxa7 {[%emt 0:00:08]} 50. Rxd4 {[%emt 0:00:14]} Ra3+ {[%emt 0:00:18]} 51. Kg2 {[%emt 0:00:36]} Kf5 {[%emt 0:00:24]} 52. h4 {[%emt 0:00:30]} gxh4 {[%emt 0:00:07]} 53. Rxh4 {[%emt 0:00:16]} Ke5 {[%emt 0:00:10]} 54. Rb4 {[%emt 0:00:09]} f5 {[%emt 0:00:14]} 55. Kf2 {[%emt 0:00:46]} Rd3 {[%emt 0:00:07]} 56. Ke2 {[%emt 0:00:19]} Rd4 {[%emt 0:00:06]} 57. Rb6 {[%emt 0:00:38]} f4 {[%emt 0:00:30]} 58. Kf3 {[%emt 0:00:32]} Rd3+ {[%emt 0:00:06]} 59. Ke2 {[%emt 0:00:10]} Re3+ {[%emt 0:00:06]} 60. Kf2 {[%emt 0:00:21]} Kf5 {[%emt 0:00:18]} 61. Rb8 {[%emt 0:00:37]} e5 {[%emt 0:00:54]} 62. Kg2 {[%emt 0:00:53]} Rd3 {[%emt 0:00:16]} 63. Kf2 {[%emt 0:00:32]} Ke4 {[%emt 0:00:05]} 64. Rb4+ {[%emt 0:00:32]} Rd4 {[%emt 0:00:12]} 65. Rb3 {[%emt 0:00:44]} Rd2+ {[%emt 0:00:14]} 66. Ke1 {[%emt 0:00:31]} Ra2 {[%emt 0:00:07]} 67. Rb4+ {[%emt 0:00:38]} Kf5 {[%emt 0:00:07]} 68. Rb5 {[%emt 0:00:25]} f3 {[%emt 0:00:07]} 69. Kf1 {[%emt 0:00:43]} Kf4 {[%emt 0:00:06]} 70. Rb8 {[%emt 0:01:30]} e4 {[%emt 0:00:07]} 71. Kg1 {[%emt 0:00:39]} Rd2 {[%emt 0:00:33]} 72. Rb1 {[%emt 0:00:39]} e3 {[%emt 0:00:14]} 73. Kh1 {[%emt 0:00:31]} e2 {[%emt 0:00:28]} 74. Kh2 {[%emt 0:00:36]} e1=Q+ {[%emt 0:00:09]} 0-1

[Event "Djerba Festival Open-B 2025"]
[Site "Djerba"]
[Date "2025.02.18"]
[Round "4.5"]
[White "Guirat, Saber"]
[Black "Louvrier Saint-Mary, Jean-Roger"]
[Result "1-0"]
[Annotator "NA"]
[ECO "B42"]
[WhiteElo "1956"]
[BlackElo "1839"]
[PlyCount "61"]
[EventDate "2025.02.15"]
[EventType "swiss"]
[EventCountry "TUN"]
[SourceTitle "playchess.com"]
[Source "ChessBase"]
[SourceQuality "1"]
[TimeControl "5400+30"]

1. e4 {[%emt 0:00:03]} c5 {[%emt 0:04:33]} 2. Nf3 {[%emt 0:00:05]} a6 {[%emt 0:00:13]} 3. d4 {[%emt 0:00:53]} cxd4 {[%emt 0:00:04]} 4. Nxd4 {[%emt 0:00:09]} e6 {[%emt 0:00:25]} 5. Bd3 {[%emt 0:00:09]} Qc7 {[%emt 0:00:03]} 6. O-O {[%emt 0:00:17]} h5 {[%emt 0:00:36]} 7. Qe2 {[%emt 0:05:10]} Bd6 {[%emt 0:00:15]} 8. f4 {[%emt 0:01:21]} Nf6 {[%emt 0:03:34]} 9. c3 {[%emt 0:04:30]} Bc5 {[%emt 0:00:24]} 10. e5 {[%emt 0:02:37]} Nd5 {[%emt 0:01:22]} 11. Kh1 {[%emt 0:02:27]} b5 {[%emt 0:01:29]} 12. Nd2 {[%emt 0:00:43]} Bb7 {[%emt 0:03:41]} 13. Ne4 {[%emt 0:00:29]} Be7 {[%emt 0:00:27]} 14. a4 {[%emt 0:00:18]} Nc6 {[%emt 0:06:38]} 15. axb5 {[%emt 0:02:22]} Nxd4 {[%emt 0:00:29]} 16. cxd4 {[%emt 0:00:08]} axb5 {[%emt 0:06:17]} 17. Rxa8+ {[%emt 0:00:21]} Bxa8 {[%emt 0:00:06]} 18. Bd2 {[%emt 0:05:11]} Qb6 {[%emt 0:14:39]} 19. f5 {[%emt 0:11:24]} Qxd4 {[%emt 0:09:05]} 20. fxe6 {[%emt 0:00:24]} fxe6 {[%emt 0:17:16]} 21. Nd6+ {[%emt 0:01:51]} Bxd6 {[%emt 0:00:55]} 22. Bg6+ {[%emt 0:10:11]} Kd8 {[%emt 0:03:30]} 23. exd6 {[%emt 0:00:09]} Bc6 {[%emt 0:01:39]} 24. Qxh5 {[%emt 0:01:47]} Rg8 {[%emt 0:02:37]} 25. Qh7 {[%emt 0:00:42]} Kc8 {[%emt 0:02:17]} 26. Qxg8+ {[%emt 0:00:24]} Kb7 {[%emt 0:00:04]} 27. Ra1 {[%emt 0:00:46]} Nb6 {[%emt 0:00:40]} 28. Qd8 {[%emt 0:06:27]} Bxg2+ {[%emt 0:02:33]} 29. Kxg2 {[%emt 0:00:19]} Qxd2+ {[%emt 0:00:03]} 30. Kf3 {[%emt 0:01:12]} Qxd6 {[%emt 0:02:10]} 31. Be4+ {[%emt 0:43:11]} 1-0

[Event "Djerba Festival Open-B 2025"]
[Site "Djerba"]
[Date "2025.02.18"]
[Round "4.6"]
[White "Ertemi, Ibrahim K"]
[Black "Ktita, Dhafer"]
[Result "1/2-1/2"]
[Annotator "ChessBase"]
[ECO "B22"]
[WhiteElo "1823"]
[BlackElo "1949"]
[PlyCount "164"]
[EventDate "2025.02.15"]
[EventType "swiss"]
[EventCountry "TUN"]
[SourceTitle "playchess.com"]
[Source "ChessBase"]
[SourceQuality "1"]
[TimeControl "5400+30"]

1. e4 {[%emt 1:31:00]} c5 {[%emt 1:31:00]} 2. Nf3 {[%emt 0:00:30]} Nc6 {[%emt 0:00:30]} 3. c3 {[%emt 0:00:30]} d5 {[%emt 0:00:30]} 4. exd5 {[%emt 0:00:30]} Qxd5 {[%emt 0:00:30]} 5. Be2 {[%emt 0:00:30]} e5 {[%emt 0:00:30]} 6. d3 {[%emt 0:00:30]} Nf6 {[%emt 0:00:30]} 7. c4 {[%emt 0:00:30]} Qd8 {[%emt 0:00:30]} 8. Bg5 {[%emt 0:00:30]} Be7 {[%emt 0:00:30]} 9. Nc3 {[%emt 0:00:30]} O-O {[%emt 0:00:30]} 10. Bxf6 {[%emt 0:00:30]} Bxf6 {[%emt 0:00:30]} 11. O-O {[%emt 0:00:30]} Be6 {[%emt 0:00:30]} 12. h3 {[%emt 0:00:30]} Be7 {[%emt 0:00:30]} 13. Nh2 {[%emt 0:00:30]} Qd7 {[%emt 0:00:30]} 14. Bf3 {[%emt 0:00:30]} Nd4 {[%emt 0:00:30]} 15. Bd5 {[%emt 0:00:30]} Bxd5 {[%emt 0:00:30]} 16. Nxd5 {[%emt 0:00:30]} Bd6 {[%emt 0:00:30]} 17. Nf3 {[%emt 0:00:30]} Rae8 {[%emt 0:00:30]} 18. Ng5 {[%emt 0:00:30]} f5 {[%emt 0:00:30]} 19. Nf3 {[%emt 0:00:30]} Nxf3+ {[%emt 0:00:30]} 20. Qxf3 {[%emt 0:00:30]} e4 {[%emt 0:00:30]} 21. dxe4 {[%emt 0:00:30]} fxe4 {[%emt 0:00:30]} 22. Qg4 {[%emt 0:00:30]} Qxg4 {[%emt 0:00:30]} 23. hxg4 {[%emt 0:00:30]} Be5 {[%emt 0:00:30]} 24. Rab1 {[%emt 0:00:30]} Bd4 {[%emt 0:00:30]} 25. Rbe1 {[%emt 0:00:30]} Re5 {[%emt 0:00:30]} 26. Re2 {[%emt 0:00:30]} b5 {[%emt 0:00:30]} 27. b3 {[%emt 0:00:30]} b4 {[%emt 0:00:30]} 28. Kh2 {[%emt 0:00:30]} Rfe8 {[%emt 0:00:30]} 29. g3 {[%emt 0:00:30]} h5 {[%emt 0:00:30]} 30. gxh5 {[%emt 0:00:30]} Rxh5+ {[%emt 0:00:30]} 31. Kg2 {[%emt 0:00:30]} Rf5 {[%emt 0:00:30]} 32. Rh1 {[%emt 0:00:30]} g6 {[%emt 0:00:30]} 33. Rh4 {[%emt 0:00:30]} Kg7 {[%emt 0:00:30]} 34. Rh1 {[%emt 0:00:30]} a5 {[%emt 0:00:30]} 35. Rh4 {[%emt 0:00:30]} g5 {[%emt 0:00:30]} 36. Rh5 {[%emt 0:00:30]} Kg6 {[%emt 0:00:30]} 37. Rh1 {[%emt 0:00:30]} Rf3 {[%emt 0:00:30]} 38. Rf1 {[%emt 0:00:30]} Rd3 {[%emt 0:00:30]} 39. Rfe1 {[%emt 0:00:30]} a4 {[%emt 0:00:30]} 40. bxa4 {[%emt 0:00:30]} Ra3 {[%emt 0:00:30]} 41. Rxe4 {[%emt 0:00:30]} Rxe4 {[%emt 0:00:30]} 42. Rxe4 {[%emt 0:00:30]} Rxa2 {[%emt 0:00:30]} 43. Nxb4 {[%emt 0:00:30]} Rxf2+ {[%emt 0:00:30]} 44. Kh3 {[%emt 0:00:30]} Kf5 {[%emt 0:00:30]} 45. Rg4 {[%emt 0:00:30]} cxb4 {[%emt 0:00:30]} 46. Rxd4 {[%emt 0:00:30]} b3 {[%emt 0:00:30]} 47. Rd5+ {[%emt 0:00:30]} Kf6 {[%emt 0:00:30]} 48. Rb5 {[%emt 0:00:30]} b2 {[%emt 0:00:30]} 49. a5 {[%emt 0:00:30]} Rc2 {[%emt 0:00:30]} 50. a6 {[%emt 0:00:30]} Rxc4 {[%emt 0:00:30]} 51. Rxb2 {[%emt 0:00:30]} Ra4 {[%emt 0:00:30]} 52. Rb6+ {[%emt 0:00:30]} Kf5 {[%emt 0:00:30]} 53. Rc6 {[%emt 0:00:30]} Ra1 {[%emt 0:00:30]} 54. g4+ {[%emt 0:00:30]} Ke4 {[%emt 0:00:30]} 55. Re6+ {[%emt 0:00:30]} Kf3 {[%emt 0:00:30]} 56. Rf6+ {[%emt 0:00:30]} Ke4 {[%emt 0:00:30]} 57. Kg2 {[%emt 0:00:30]} Ra2+ {[%emt 0:00:30]} 58. Kf1 {[%emt 0:00:30]} Ra1+ {[%emt 0:00:30]} 59. Ke2 {[%emt 0:00:30]} Ra2+ {[%emt 0:00:30]} 60. Kd1 {[%emt 0:00:30]} Kd3 {[%emt 0:00:30]} 61. Ke1 {[%emt 0:00:30]} Ke3 {[%emt 0:00:30]} 62. Kd1 {[%emt 0:00:30]} Kd3 {[%emt 0:00:30]} 63. Kc1 {[%emt 0:00:30]} Kc4 {[%emt 0:00:30]} 64. Kb1 {[%emt 0:00:30]} Ra4 {[%emt 0:00:30]} 65. Kc2 {[%emt 0:00:30]} Kb5 {[%emt 0:00:30]} 66. Rf5+ {[%emt 0:00:30]} Kxa6 {[%emt 0:00:30]} 67. Rxg5 Rd4 {[%emt 0:00:30]} 68. Kc3 {[%emt 0:01:00]} Rd1 {[%emt 0:00:30]} 69. Kc4 {[%emt 0:00:30]} Kb6 {[%emt 0:00:30]} 70. Rf5 {[%emt 0:00:30]} Kc6 {[%emt 0:00:30]} 71. Rf4 {[%emt 0:00:30]} Kd6 {[%emt 0:00:30]} 72. Rd4+ {[%emt 0:00:30]} Rxd4+ {[%emt 0:00:30]} 73. Kxd4 {[%emt 0:00:30]} Ke6 {[%emt 0:00:30]} 74. Ke4 {[%emt 0:00:30]} Kf6 {[%emt 0:00:30]} 75. Kf4 {[%emt 0:00:30]} Kg6 {[%emt 0:00:30]} 76. g5 {[%emt 0:00:30]} Kg7 {[%emt 0:00:30]} 77. Kf5 {[%emt 0:00:30]} Kf7 {[%emt 0:00:30]} 78. g6+ {[%emt 0:00:30]} Kg8 {[%emt 0:00:30]} 79. Kf4 {[%emt 0:00:30]} Kf8 {[%emt 0:00:30]} 80. Kg5 {[%emt 0:00:30]} Kg7 {[%emt 0:00:30]} 81. Kh5 {[%emt 0:00:30]} Kg8 {[%emt 0:00:30]} 82. Kh6 {[%emt 0:00:30]} Kh8 {[%emt 0:00:30]} 1/2-1/2

[Event "Djerba Festival Open-B 2025"]
[Site "Djerba"]
[Date "2025.02.18"]
[Round "4.7"]
[White "Nassr, Lina"]
[Black "Azreug, Lazhar"]
[Result "0-1"]
[Annotator "ChessBase"]
[ECO "E61"]
[WhiteElo "1934"]
[BlackElo "1793"]
[PlyCount "96"]
[EventDate "2025.02.15"]
[EventType "swiss"]
[EventCountry "TUN"]
[SourceTitle "playchess.com"]
[Source "ChessBase"]
[SourceQuality "1"]
[TimeControl "5400+30"]

1. d4 {[%emt 0:00:02]} Nf6 {[%emt 0:04:33]} 2. Nf3 {[%emt 0:00:17]} g6 {[%emt 0:00:17]} 3. e3 {[%emt 0:00:24]} Bg7 {[%emt 0:00:24]} 4. c4 {[%emt 0:00:47]} c5 {[%emt 0:00:45]} 5. dxc5 {[%emt 0:03:16]} Na6 {[%emt 0:01:47]} 6. Nc3 {[%emt 0:00:49]} Nxc5 {[%emt 0:01:31]} 7. Be2 {[%emt 0:01:07]} O-O {[%emt 0:01:50]} 8. O-O {[%emt 0:00:08]} d6 {[%emt 0:01:29]} 9. Nd4 {[%emt 0:02:35]} d5 {[%emt 0:11:11]} 10. Nb3 {[%emt 0:19:04]} Nxb3 {[%emt 0:06:08]} 11. Qxb3 {[%emt 0:06:31]} dxc4 {[%emt 0:03:34]} 12. Bxc4 {[%emt 0:00:09]} b6 {[%emt 0:08:37]} 13. e4 {[%emt 0:11:13]} Qc7 {[%emt 0:08:20]} 14. f3 {[%emt 0:04:03]} Qc5+ {[%emt 0:04:16]} 15. Kh1 {[%emt 0:01:09]} Bb7 {[%emt 0:03:15]} 16. Be2 {[%emt 0:14:42]} Rfd8 {[%emt 0:06:33]} 17. Qb5 {[%emt 0:10:54]} Nd7 {[%emt 0:10:23]} 18. Bg5 {[%emt 0:04:47]} h6 {[%emt 0:06:29]} 19. Qxc5 {[%emt 0:00:56]} Nxc5 {[%emt 0:00:01]} 20. Bxe7 {[%emt 0:11:04]} Rd2 {[%emt 0:00:19]} 21. Bxc5 {[%emt 0:00:39]} bxc5 {[%emt 0:00:30]} 22. Bc4 {[%emt 0:01:37]} Rxb2 {[%emt 0:03:52]} 23. Rac1 {[%emt 0:01:12]} Bc6 {[%emt 0:04:34]} 24. Rfd1 {[%emt 0:02:36]} Rab8 {[%emt 0:02:48]} 25. Nd5 {[%emt 0:02:11]} Kf8 {[%emt 0:02:16]} 26. Bb3 {[%emt 0:00:20]} Bd4 {[%emt 0:01:12]} 27. h3 {[%emt 0:00:23]} Bb5 {[%emt 0:00:58]} 28. Rc2 {[%emt 0:00:58]} Rxc2 {[%emt 0:00:27]} 29. Bxc2 {[%emt 0:00:01]} Bc4 {[%emt 0:01:14]} 30. Rb1 {[%emt 0:01:02]} Rxb1+ {[%emt 0:00:01]} 31. Bxb1 {[%emt 0:00:01]} Ke8 {[%emt 0:00:41]} 32. g3 {[%emt 0:00:52]} Kd7 {[%emt 0:00:17]} 33. Kg2 {[%emt 0:00:34]} Kc6 {[%emt 0:00:14]} 34. f4 {[%emt 0:00:35]} Kb5 {[%emt 0:02:18]} 35. Kf3 {[%emt 0:00:18]} Ka4 {[%emt 0:00:48]} 36. Ne3 {[%emt 0:00:36]} Bxe3 {[%emt 0:02:09]} 37. Kxe3 {[%emt 0:00:02]} Ka3 {[%emt 0:00:19]} 38. e5 {[%emt 0:00:57]} Kb2 {[%emt 0:01:56]} 39. Be4 {[%emt 0:00:34]} Bxa2 {[%emt 0:00:54]} 40. g4 {[%emt 0:00:26]} c4 {[%emt 0:00:20]} 41. f5 {[%emt 0:00:37]} gxf5 {[%emt 0:00:39]} 42. gxf5 {[%emt 0:00:05]} c3 {[%emt 0:00:10]} 43. Kd4 {[%emt 0:00:55]} a5 {[%emt 0:00:48]} 44. Kc5 {[%emt 0:00:31]} a4 {[%emt 0:00:34]} 45. Kb4 {[%emt 0:00:24]} a3 {[%emt 0:00:23]} 46. h4 {[%emt 0:00:33]} Bb3 {[%emt 0:00:16]} 47. e6 {[%emt 0:00:25]} fxe6 {[%emt 0:00:22]} 48. f6 {[%emt 0:00:06]} e5 {[%emt 0:00:02]} 0-1

[Event "Djerba Festival Open-B 2025"]
[Site "Djerba"]
[Date "2025.02.18"]
[Round "4.8"]
[White "Gely, Bernard"]
[Black "Chaouech, Oussama"]
[Result "1/2-1/2"]
[Annotator "NA"]
[ECO "D35"]
[WhiteElo "1928"]
[BlackElo "1651"]
[PlyCount "90"]
[EventDate "2025.02.15"]
[EventType "swiss"]
[EventCountry "TUN"]
[SourceTitle "playchess.com"]
[Source "ChessBase"]
[SourceQuality "1"]
[TimeControl "5400+30"]

1. d4 {[%emt 0:01:27]} d5 {[%emt 0:00:22]} 2. c4 {[%emt 0:00:11]} e6 {[%emt 0:00:12]} 3. Nc3 {[%emt 0:00:07]} Nf6 {[%emt 0:00:09]} 4. Bf4 {[%emt 0:00:05]} Bd6 {[%emt 0:00:57]} 5. Bxd6 {[%emt 0:00:03]} Qxd6 {[%emt 0:00:13]} 6. c5 {[%emt 0:00:01]} Qe7 {[%emt 0:00:53]} 7. Nf3 {[%emt 0:00:05]} O-O {[%emt 0:01:35]} 8. e3 {[%emt 0:00:01]} Nc6 {[%emt 0:00:37]} 9. Be2 {[%emt 0:00:11]} b6 {[%emt 0:00:48]} 10. cxb6 {[%emt 0:00:05]} axb6 {[%emt 0:00:35]} 11. O-O {[%emt 0:00:20]} Ba6 {[%emt 0:02:04]} 12. Rc1 {[%emt 0:00:54]} Na5 {[%emt 0:01:05]} 13. Ne5 {[%emt 0:02:33]} Bxe2 {[%emt 0:06:24]} 14. Qxe2 {[%emt 0:00:20]} Rfc8 {[%emt 0:02:38]} 15. Rc2 {[%emt 0:02:17]} Ne8 {[%emt 0:01:49]} 16. b3 {[%emt 0:01:35]} f6 {[%emt 0:00:30]} 17. Nf3 {[%emt 0:00:41]} Nd6 {[%emt 0:00:43]} 18. Rfc1 {[%emt 0:00:17]} Nab7 {[%emt 0:03:03]} 19. Na4 {[%emt 0:01:35]} Qd7 {[%emt 0:01:40]} 20. h3 {[%emt 0:01:09]} Kf7 {[%emt 0:03:35]} 21. Ne1 {[%emt 0:01:38]} Ne4 {[%emt 0:10:38]} 22. Nd3 {[%emt 0:02:08]} b5 {[%emt 0:03:32]} 23. Nac5 {[%emt 0:02:43]} Nexc5 {[%emt 0:00:33]} 24. Nxc5 {[%emt 0:00:03]} Nxc5 {[%emt 0:00:17]} 25. Rxc5 {[%emt 0:00:02]} c6 {[%emt 0:02:05]} 26. Qc2 {[%emt 0:00:16]} f5 {[%emt 0:02:26]} 27. Rxc6 {[%emt 0:01:30]} Rxc6 {[%emt 0:00:57]} 28. Qxc6 {[%emt 0:00:02]} Qxc6 {[%emt 0:00:59]} 29. Rxc6 {[%emt 0:00:02]} Rxa2 {[%emt 0:05:09]} 30. Rc7+ {[%emt 0:00:39]} Kf6 {[%emt 0:01:42]} 31. Rb7 {[%emt 0:00:02]} Ra1+ {[%emt 0:00:55]} 32. Kh2 {[%emt 0:00:13]} f4 {[%emt 0:09:01]} 33. exf4 {[%emt 0:02:47]} Rd1 {[%emt 0:01:13]} 34. Rxb5 {[%emt 0:00:04]} Rxd4 {[%emt 0:00:53]} 35. g3 {[%emt 0:00:06]} h6 {[%emt 0:04:26]} 36. Kg2 {[%emt 0:00:05]} Kf5 {[%emt 0:02:45]} 37. Kf3 {[%emt 0:00:32]} Rd3+ {[%emt 0:01:26]} 38. Ke2 {[%emt 0:00:02]} Rc3 {[%emt 0:00:25]} 39. Rb7 {[%emt 0:03:50]} g6 {[%emt 0:04:32]} 40. Kd2 {[%emt 0:02:50]} Rf3 {[%emt 0:03:39]} 41. Ke2 {[%emt 0:00:20]} Rc3 {[%emt 0:00:46]} 42. Rb4 {[%emt 0:00:25]} Rc2+ {[%emt 0:00:48]} 43. Ke3 {[%emt 0:00:09]} Rc3+ {[%emt 0:00:23]} 44. Kd2 {[%emt 0:00:11]} Rf3 {[%emt 0:00:24]} 45. Ke2 {[%emt 0:01:22]} Rc3 {[%emt 0:01:33]} 1/2-1/2